fUST/lending_fUST_20240520
["ID","MTS","AMOUNT","RATE_DAILY","PERIOD"]
[327520099,1716150633712,-300.000001,0.000399,3]
[327520100,1716150633721,-2000.0,0.000399,2]
[327520101,1716150633731,-500.0,0.00039999,31]
[327520102,1716150633741,-429.26343626,0.00039999,31]
[327520103,1716150633751,-188.34816889,0.00039999,31]
[327520104,1716150633762,-331.16891077,0.00039999,31]
[327520105,1716150633772,-500.0,0.00039999,31]
[327520106,1716150633782,-500.0,0.00039999,31]
[327520107,1716150633793,-500.0,0.00039999,31]
[327520108,1716150633803,-331.48825026,0.00039999,31]
[327520109,1716150633813,-500.0,0.00039999,31]
[327520110,1716150633822,-500.0,0.00039999,31]
[327520111,1716150633833,-500.0,0.00039999,31]
[327520112,1716150633842,-500.0,0.00039999,31]
[327520113,1716150633852,-500.0,0.00039999,31]
[327520114,1716150633862,-500.0,0.00039999,31]
[327520115,1716150633873,-500.0,0.00039999,31]
[327520116,1716150633882,-500.0,0.00039999,31]
[327520117,1716150633891,-500.0,0.00039999,31]
[327520118,1716150633900,-500.0,0.00039999,31]
[327520119,1716150633910,-500.0,0.00039999,31]
[327520120,1716150633919,-500.0,0.00039999,31]
[327520121,1716150633929,-500.0,0.00039999,31]
[327520122,1716150633938,-500.0,0.00039999,31]
[327520123,1716150633948,-500.0,0.00039999,31]
[327520124,1716150633957,-500.0,0.00039999,31]
[327520125,1716150633967,-500.0,0.00039999,31]
[327520126,1716150633976,-500.0,0.00039999,31]
[327520127,1716150633987,-500.0,0.00039999,31]
[327520128,1716150633996,-500.0,0.00039999,31]
[327520129,1716150634006,-500.0,0.00039999,31]
[327520130,1716150634015,-500.0,0.00039999,31]
[327520131,1716150634025,-500.0,0.00039999,31]
[327520132,1716150634034,-500.0,0.00039999,31]
[327520133,1716150634044,-500.0,0.00039999,31]
[327520134,1716150634053,-500.0,0.00039999,31]
[327520135,1716150634063,-226.67548614,0.00039999,31]
[327520136,1716150634072,-3556.2338703,0.0004,3]
[327520137,1716150634082,-1357.02163612,0.0004,3]
[327520138,1716150634091,-107639.23570966,0.0004,2]
[327520152,1716150638180,-492.77706679,0.00039995,31]
[327520154,1716150638190,-500.0,0.00039999,31]
[327520157,1716150638200,-259.72877638,0.00039999,31]
[327520221,1716150640373,-240.27122362,0.00039999,31]
[327520222,1716150640383,-500.0,0.00039999,31]
[327520223,1716150640393,-500.0,0.00039999,31]
[327520224,1716150640402,-500.0,0.00039999,31]
[327520225,1716150640412,-500.0,0.00039999,31]
[327520226,1716150640422,-8292.76477612,0.0004,2]
[327520227,1716150640435,-3705.40476989,0.0004,2]
[327520228,1716150640447,-44932.44465486,0.0004,2]
[327520229,1716150640467,-284.2515502,0.0004,2]
[327520230,1716150640479,-257216.90338304,0.0004,2]
[327520231,1716150640489,-9991.77,0.0004,2]
[327520232,1716150640500,-6073.25093483,0.0004,20]
[327520233,1716150640510,-240.84699711,0.0004,4]
[327520234,1716150640520,-160.0,0.0004,21]
[327520235,1716150640534,-153.0,0.00040411,2]
[327520236,1716150640544,-153.0,0.00040411,2]
[327520237,1716150640554,-153.0,0.00040411,2]
[327520238,1716150640564,-306.0,0.00040685,2]
[327520239,1716150640578,-153.0,0.00040685,2]
[327520240,1716150640588,-153.0,0.00040685,2]
[327520241,1716150640598,-175.3,0.00040755,15]
[327520242,1716150640608,-306.0,0.0004079,2]
[327520243,1716150640618,-4002.91029367,0.00041,2]
[327520244,1716150640627,-153.0,0.0004137,2]
[327520245,1716150640637,-153.0,0.00041748,2]
[327520246,1716150640647,-153.0,0.00041748,2]
[327520247,1716150640657,-169.7973437,0.00041748,2]
[327520248,1716150640666,-2861.96300562,0.00042,15]
[327520249,1716150640676,-5000.0,0.0004241,4]
[327520250,1716150640685,-602.68669807,0.00042871,2]
[327520251,1716150640695,-36426.29239227,0.00043,2]
[327520299,1716150645824,-594.49542489,0.00043,2]
[327520300,1716150645901,-460.85455003,0.00043,2]
[327520410,1716151832161,-1182.61484399,0.00020911,2]
[327520411,1716151832173,-87.38515601,0.00020911,2]
[327520413,1716151832182,-4782.73388631,0.00020912,2]
[327520416,1716151832194,-1824.12206846,0.00020912,2]
[327520417,1716151832203,-2485.68961579,0.00020912,2]
[327520419,1716151832212,-1114.42942653,0.00020912,2]
[327520461,1716151838215,-3287.34737338,0.00020912,2]
[327520462,1716151838294,-6784.6021993,0.00020912,2]
[327520463,1716151838308,-468.12640148,0.00020912,2]
[327520485,1716151840484,-599.80013693,0.00020912,2]
[327520486,1716151840568,-234.11132513,0.00020912,2]
[327520487,1716151840577,-230.67733671,0.00020913,2]
[327520488,1716151840588,-205.41120123,0.00020913,2]
[327520489,1716151840598,-150.0,0.00021673,3]
[327520490,1716151840607,-476.309468,0.00021918,2]
[327520491,1716151840616,-166.666666,0.00021918,2]
[327520492,1716151840626,-166.666666,0.00022431,2]
[327520493,1716151840635,-166.666666,0.00022944,2]
[327520494,1716151840644,-166.666666,0.00023456,2]
[327520495,1716151840653,-166.666666,0.00023969,2]
[327520496,1716151840663,-150.0,0.00024074,3]
[327520497,1716151840673,-164.138579,0.00024384,2]
[327520498,1716151840682,-166.666666,0.00024482,2]
[327520499,1716151840691,-150.0,0.00026476,5]
[327520500,1716151840700,-803.04874393,0.000275,17]
[327520501,1716151840711,-164.138579,0.0003189,2]
[327520502,1716151840720,-467.90063964,0.00034,4]
[327520503,1716151840730,-161.845266,0.00035616,120]
[327520504,1716151840739,-164.138579,0.00039397,2]
[327520505,1716151840749,-1514.56238956,0.00040291,4]
[327520506,1716151840758,-269.06941782,0.00042569,3]
[327520507,1716151840768,-160.0,0.000429,27]
[327520508,1716151840777,-284.46761686,0.000429,28]
[327520509,1716151840786,-1360.63264968,0.00043,2]
[327520510,1716151840796,-240.84699711,0.00043,4]
[327520511,1716151840805,-6996.79761999,0.0004369,2]
[327520653,1716152117606,1190.91555498,0.0002651,120]
[327520799,1716153040840,-1270.0,0.00020913,2]
[327520800,1716153040849,-150.0,0.00021723,3]
[327520801,1716153040859,-150.0,0.0002412,3]
[327520802,1716153040868,-187.500027,0.00024384,2]
[327520803,1716153040877,-164.138579,0.00024384,2]
[327520804,1716153040887,-150.0,0.00026517,5]
[327520805,1716153040896,-150.0,0.00028914,7]
[327520806,1716153040906,-166.666666,0.00029992,2]
[327520807,1716153040915,-464.00462424,0.0003,30]
[327520808,1716153040924,-170.68488,0.00030466,2]
[327520809,1716153040934,-166.666666,0.00030809,2]
[327520810,1716153040943,-150.0,0.00031311,7]
[327520811,1716153040952,-166.666666,0.00031627,2]
[327520812,1716153040961,-166.666666,0.00032445,2]
[327520814,1716153040971,-166.666666,0.00033262,2]
[327520816,1716153040980,-164.138579,0.00033767,2]
[327520818,1716153040989,-290.55078384,0.00034,4]
[327520821,1716153041004,-177.3498558,0.00034,4]
[327520823,1716153041014,-166.666666,0.0003408,2]
[327520825,1716153041023,-103.07456392,0.00035616,120]
[327520855,1716153047143,-58.77070208,0.00035616,120]
[327520856,1716153047153,-187.47800717,0.00040938,4]
[327520858,1716153047162,-1000.0,0.000425,2]
[327520859,1716153047171,-1285.4232079,0.00043,2]
[327522027,1716154098140,-464.00462424,0.0003,30]
[327522028,1716154098162,-6073.25093483,0.00043,20]
[327522029,1716154098183,-433.0,0.00043,90]
[327522030,1716154098205,-433.0,0.00043014,90]
[327522031,1716154098228,-1574.18339237,0.00043472,15]
[327522032,1716154098249,-151.0,0.000436,28]
[327522033,1716154098272,-500.0,0.00043728,31]
[327522034,1716154098299,-183.97004411,0.00043728,31]
[327522035,1716154098321,-356.35210725,0.00043728,31]
[327522036,1716154098345,-500.0,0.00043728,31]
[327522037,1716154098368,-500.0,0.00043728,31]
[327522038,1716154098391,-318.00264584,0.00043728,31]
[327522039,1716154098416,-500.0,0.00043728,31]
[327522040,1716154098444,-500.0,0.00043728,31]
[327522041,1716154098466,-500.0,0.00043728,31]
[327522042,1716154098490,-500.0,0.00043728,31]
[327522043,1716154098512,-500.0,0.00043728,31]
[327522044,1716154098536,-500.0,0.00043728,31]
[327522045,1716154098559,-500.0,0.00043728,31]
[327522046,1716154098583,-500.0,0.00043728,31]
[327522047,1716154098606,-500.0,0.00043728,31]
[327522048,1716154098629,-500.0,0.00043728,31]
[327522049,1716154098652,-500.0,0.00043728,31]
[327522050,1716154098678,-500.0,0.00043728,31]
[327522051,1716154098702,-500.0,0.00043835,30]
[327522052,1716154098726,-500.0,0.00043835,30]
[327522053,1716154098751,-508.46671421,0.00043835,30]
[327522054,1716154098774,-500.0,0.00043835,30]
[327522055,1716154098797,-447.74,0.00043835,30]
[327522056,1716154098820,-500.0,0.00043835,30]
[327522057,1716154098842,-451.81179769,0.00043835,30]
[327522058,1716154098864,-500.69722533,0.00043835,30]
[327522059,1716154098887,-501.92349467,0.00043835,30]
[327522060,1716154098909,-500.0,0.00043835,30]
[327522061,1716154098931,-176.81577058,0.00043835,30]
[327522062,1716154098954,-500.0,0.00043835,30]
[327522063,1716154098976,-500.0,0.00043835,30]
[327522064,1716154098999,-500.0,0.00043835,30]
[327522065,1716154099022,-500.0,0.00043835,30]
[327522066,1716154099045,-504.07556799,0.00043835,30]
[327522067,1716154099067,-500.0,0.00043835,30]
[327522068,1716154099090,-500.0,0.00043835,30]
[327522069,1716154099115,-500.0,0.00043835,30]
[327522070,1716154099139,-500.0,0.00043835,30]
[327522071,1716154099162,-300.87619294,0.00043835,30]
[327522072,1716154099186,-160.79929937,0.00043835,30]
[327522073,1716154099208,-500.0,0.00043835,30]
[327522074,1716154099232,-310.77494228,0.00043835,30]
[327522075,1716154099257,-521.98164344,0.00043835,30]
[327522076,1716154099280,-500.0,0.00043835,30]
[327522077,1716154099303,-500.0,0.00043835,30]
[327522078,1716154099326,-515.19899947,0.00043835,30]
[327522079,1716154099349,-500.0,0.00043835,30]
[327522080,1716154099373,-500.0,0.00043835,30]
[327522081,1716154099396,-500.0,0.00043835,30]
[327522082,1716154099418,-500.0,0.00043835,30]
[327522083,1716154099440,-501.3802005,0.00043835,30]
[327522084,1716154099467,-500.0,0.00043835,30]
[327522085,1716154099489,-500.0,0.00043835,30]
[327522086,1716154099511,-500.0,0.00043835,30]
[327522087,1716154099535,-500.0,0.00043835,30]
[327522088,1716154099558,-500.0,0.00043835,30]
[327522089,1716154099580,-501.63264309,0.00043835,30]
[327522090,1716154099604,-500.0,0.00043835,30]
[327522091,1716154099628,-501.74924601,0.00043835,30]
[327522092,1716154099651,-500.0,0.00043835,30]
[327522093,1716154099677,-500.0,0.00043835,30]
[327522094,1716154099701,-500.0,0.00043835,30]
[327522095,1716154099724,-320.69376436,0.00043835,30]
[327522096,1716154099747,-500.0,0.00043835,30]
[327522097,1716154099771,-500.0,0.00043835,30]
[327522098,1716154099796,-500.0,0.00043835,30]
[327522099,1716154099820,-500.0,0.00043835,30]
[327522100,1716154099844,-500.0,0.00043835,30]
[327522101,1716154099868,-436.55677437,0.00043835,30]
[327522102,1716154099892,-500.0,0.00043835,30]
[327522103,1716154099915,-374.40222369,0.00043835,30]
[327522104,1716154099939,-500.0,0.00043835,30]
[327522105,1716154099962,-500.0,0.00043835,30]
[327522106,1716154100074,-500.0,0.00043835,30]
[327522107,1716154100097,-500.0,0.00043835,30]
[327522108,1716154100120,-500.0,0.00043835,30]
[327522109,1716154100143,-500.0,0.00043835,30]
[327522110,1716154100166,-500.0,0.00043835,30]
[327522111,1716154100189,-500.0,0.00043835,30]
[327522112,1716154100212,-500.0,0.00043835,30]
[327522113,1716154100234,-500.0,0.00043835,30]
[327522114,1716154100256,-500.0,0.00043835,30]
[327522115,1716154100280,-501.37872881,0.00043835,30]
[327522116,1716154100302,-500.0,0.00043835,30]
[327522117,1716154100324,-500.0,0.00043835,20]
[327522118,1716154100347,-500.0,0.00043835,30]
[327522119,1716154100370,-500.0,0.00043835,30]
[327522120,1716154100393,-500.0,0.00043835,30]
[327522121,1716154100417,-500.0,0.00043835,30]
[327522122,1716154100439,-500.0,0.00043835,30]
[327522123,1716154100462,-500.0,0.00043835,30]
[327522124,1716154100485,-500.0,0.00043835,30]
[327522125,1716154100507,-591.44433492,0.00043835,30]
[327522126,1716154100530,-500.0,0.00043835,30]
[327522127,1716154100554,-500.0,0.00043835,30]
[327522128,1716154100576,-503.23549711,0.00043835,30]
[327522129,1716154100600,-500.0,0.00043835,30]
[327522130,1716154100622,-500.0,0.00043835,30]
[327522131,1716154100646,-500.0,0.00043835,30]
[327522132,1716154100670,-500.0,0.00043835,30]
[327522133,1716154100696,-500.0,0.00043835,30]
[327522134,1716154100719,-500.0,0.00043835,30]
[327522135,1716154100740,-500.0,0.00043835,30]
[327522136,1716154100765,-500.0,0.00043835,30]
[327522137,1716154100787,-500.0,0.00043835,30]
[327522138,1716154100811,-500.0,0.00043835,30]
[327522139,1716154100835,-158.22177344,0.00043835,30]
[327522140,1716154100859,-500.0,0.00043835,30]
[327522141,1716154100881,-500.0,0.00043835,30]
[327522142,1716154100902,-500.0,0.00043835,30]
[327522143,1716154100924,-500.0,0.00043835,30]
[327522144,1716154100948,-500.0,0.00043835,30]
[327522145,1716154100971,-500.0,0.00043835,30]
[327522146,1716154100993,-500.0,0.00043835,30]
[327522147,1716154101015,-500.0,0.00043835,30]
[327522148,1716154101040,-500.0,0.00043835,30]
[327522149,1716154101070,-500.0,0.00043835,30]
[327522150,1716154101100,-500.0,0.00043835,30]
[327522151,1716154101129,-500.0,0.00043835,30]
[327522152,1716154101157,-500.0,0.00043835,30]
[327522153,1716154101185,-500.0,0.00043835,30]
[327522154,1716154101213,-500.0,0.00043835,30]
[327522155,1716154101247,-500.0,0.00043835,30]
[327522156,1716154101277,-500.0,0.00043835,30]
[327522157,1716154101304,-500.0,0.00043835,30]
[327522158,1716154101331,-500.0,0.00043835,30]
[327522159,1716154101360,-500.0,0.00043835,30]
[327522160,1716154101386,-500.0,0.00043835,31]
[327522161,1716154101410,-165.96524092,0.00043835,32]
[327522162,1716154101435,-500.0,0.00043835,30]
[327522163,1716154101465,-500.0,0.00043835,30]
[327522164,1716154101493,-537.25,0.00043835,30]
[327522165,1716154101522,-333.89884817,0.00043835,30]
[327522166,1716154101553,-509.72827232,0.00043835,30]
[327522167,1716154101578,-500.0,0.00043835,30]
[327522168,1716154101601,-500.0,0.00043835,30]
[327522169,1716154101628,-500.0,0.00043835,30]
[327522170,1716154101656,-500.0,0.00043835,30]
[327522171,1716154101686,-500.0,0.00043835,30]
[327522172,1716154101713,-500.0,0.00043835,30]
[327522173,1716154101742,-500.0,0.00043835,30]
[327522174,1716154101769,-500.0,0.00043835,30]
[327522175,1716154101792,-500.0,0.00043835,30]
[327522176,1716154101816,-500.0,0.00043835,30]
[327522177,1716154101842,-397.36139608,0.00043835,30]
[327522178,1716154101868,-500.0,0.00043835,30]
[327522179,1716154101896,-500.0,0.00043835,30]
[327522180,1716154101921,-500.0,0.00043835,30]
[327522181,1716154101945,-501.97497745,0.00043835,30]
[327522182,1716154101970,-500.0,0.00043835,30]
[327522183,1716154101995,-500.0,0.00043835,30]
[327522184,1716154102019,-500.0,0.00043835,30]
[327522185,1716154102044,-500.0,0.00043835,30]
[327522186,1716154102068,-500.0,0.00043835,30]
[327522187,1716154102094,-500.0,0.00043835,30]
[327522188,1716154102120,-500.0,0.00043835,30]
[327522189,1716154102147,-500.0,0.00043835,30]
[327522190,1716154102173,-500.0,0.00043835,30]
[327522191,1716154102198,-501.0464604,0.00043835,30]
[327522192,1716154102352,-500.0,0.00043835,30]
[327522193,1716154102376,-500.0,0.00043835,30]
[327522194,1716154102399,-500.0,0.00043835,30]
[327522195,1716154102422,-500.0,0.00043835,30]
[327522196,1716154102444,-500.0,0.00043835,30]
[327522197,1716154102466,-500.0,0.00043835,30]
[327522198,1716154102489,-500.0,0.00043835,30]
[327522199,1716154102510,-500.0,0.00043835,30]
[327522200,1716154102532,-500.0,0.00043835,30]
[327522201,1716154102554,-500.0,0.00043835,30]
[327522202,1716154102576,-500.0,0.00043835,30]
[327522203,1716154102600,-500.0,0.00043835,30]
[327522204,1716154102623,-500.0,0.00043835,30]
[327522205,1716154102645,-505.34706848,0.00043835,30]
[327522206,1716154102670,-500.0,0.00043835,30]
[327522207,1716154102695,-500.0,0.00043835,30]
[327522208,1716154102718,-500.0,0.00043835,30]
[327522209,1716154102741,-507.89263316,0.00043835,30]
[327522210,1716154102765,-500.0,0.00043835,30]
[327522211,1716154102787,-500.0,0.00043835,30]
[327522212,1716154102810,-500.0,0.00043835,30]
[327522213,1716154102833,-505.30069691,0.00043835,30]
[327522214,1716154102856,-500.0,0.00043835,30]
[327522215,1716154102882,-500.0,0.00043835,30]
[327522216,1716154102905,-500.0,0.00043835,30]
[327522217,1716154102928,-500.0,0.00043835,30]
[327522218,1716154102951,-506.49840294,0.00043835,30]
[327522219,1716154102973,-500.0,0.00043835,30]
[327522220,1716154102996,-500.0,0.00043835,30]
[327522221,1716154103018,-500.0,0.00043835,30]
[327522222,1716154103041,-500.0,0.00043835,30]
[327522223,1716154103063,-500.0,0.00043835,30]
[327522224,1716154103086,-500.0,0.00043835,30]
[327522225,1716154103109,-504.8335611,0.00043835,30]
[327522226,1716154103134,-925.94,0.00043835,30]
[327522227,1716154103158,-500.0,0.00043835,30]
[327522228,1716154103180,-500.0,0.00043835,30]
[327522229,1716154103203,-500.0,0.00043835,30]
[327522230,1716154103225,-500.0,0.00043835,30]
[327522231,1716154103250,-500.0,0.00043835,30]
[327522232,1716154103275,-500.0,0.00043835,30]
[327522233,1716154103297,-500.0,0.00043835,30]
[327522234,1716154103319,-500.01708378,0.00043835,30]
[327522235,1716154103341,-500.0,0.00043835,30]
[327522236,1716154103362,-500.0,0.00043835,30]
[327522237,1716154103384,-500.0,0.00043835,30]
[327522238,1716154103406,-500.0,0.00043835,30]
[327522239,1716154103427,-465.95532778,0.00043835,30]
[327522240,1716154103449,-500.0,0.00043835,30]
[327522241,1716154103472,-529.58,0.00043835,30]
[327522242,1716154103494,-500.0,0.00043835,30]
[327522243,1716154103516,-500.0,0.00043835,30]
[327522244,1716154103539,-500.0,0.00043835,30]
[327522245,1716154103561,-500.0,0.00043835,30]
[327522246,1716154103584,-1631.99,0.00043835,30]
[327522247,1716154103607,-500.0,0.00043835,30]
[327522248,1716154103631,-500.0,0.00043835,30]
[327522249,1716154103653,-500.0,0.00043835,30]
[327522250,1716154103680,-500.0,0.00043835,30]
[327522251,1716154103702,-500.0,0.00043835,30]
[327522252,1716154103724,-501.86185944,0.00043835,30]
[327522253,1716154103748,-503.55423237,0.00043835,30]
[327522254,1716154103770,-500.0,0.00043835,30]
[327522255,1716154103793,-500.0,0.00043835,30]
[327522256,1716154103816,-500.0,0.00043835,30]
[327522257,1716154103838,-500.0,0.00043835,30]
[327522258,1716154103860,-500.0,0.00043835,30]
[327522259,1716154103882,-500.0,0.00043835,30]
[327522260,1716154103904,-500.0,0.00043835,30]
[327522261,1716154103926,-500.0,0.00043835,30]
[327522262,1716154103948,-303.8,0.00043835,30]
[327522263,1716154103971,-500.0,0.00043835,30]
[327522264,1716154103994,-500.0,0.00043835,30]
[327522265,1716154104016,-504.4740575,0.00043835,30]
[327522266,1716154104039,-500.0,0.00043835,30]
[327522267,1716154104063,-556.11,0.00043835,30]
[327522268,1716154104087,-500.0,0.00043835,30]
[327522269,1716154104110,-5763.66,0.00043835,30]
[327522270,1716154104133,-500.0,0.00043835,30]
[327522271,1716154104157,-500.0,0.00043835,30]
[327522272,1716154104179,-500.0,0.00043835,30]
[327522273,1716154104204,-503.2966039,0.00043835,30]
[327522274,1716154104228,-500.0,0.00043835,30]
[327522275,1716154104251,-505.11885123,0.00043835,30]
[327522276,1716154104275,-500.0,0.00043835,30]
[327522277,1716154104298,-500.0,0.00043835,30]
[327522278,1716154104320,-500.0,0.00043835,30]
[327522279,1716154104343,-501.97,0.00043835,30]
[327522280,1716154104368,-416.31022307,0.00043835,30]
[327522281,1716154104392,-500.0,0.00043835,30]
[327522282,1716154104414,-500.0,0.00043835,30]
[327522283,1716154104436,-500.0,0.00043835,30]
[327522284,1716154104460,-2028.34,0.00043835,30]
[327522285,1716154104577,-500.0,0.00043835,30]
[327522286,1716154104600,-500.0,0.00043835,30]
[327522287,1716154104622,-500.0,0.00043835,30]
[327522288,1716154104647,-500.0,0.00043835,30]
[327522289,1716154104672,-500.0,0.00043835,30]
[327522290,1716154104700,-10396.27,0.00043835,30]
[327522291,1716154104724,-506.73662011,0.00043835,30]
[327522292,1716154104749,-500.0,0.00043835,30]
[327522293,1716154104775,-500.0,0.00043835,30]
[327522294,1716154104798,-500.0,0.00043835,30]
[327522295,1716154104821,-503.2583718,0.00043835,30]
[327522296,1716154104847,-501.96820771,0.00043835,30]
[327522297,1716154104871,-500.0,0.00043835,30]
[327522298,1716154104896,-500.0,0.00043835,30]
[327522299,1716154104920,-508.93,0.00043835,30]
[327522300,1716154104942,-500.0,0.00043835,30]
[327522301,1716154104966,-500.0,0.00043835,30]
[327522302,1716154104990,-500.0,0.00043835,30]
[327522303,1716154105013,-904.37,0.00043835,30]
[327522304,1716154105037,-500.0,0.00043835,30]
[327522305,1716154105060,-500.0,0.00043835,30]
[327522306,1716154105083,-739.09,0.00043835,30]
[327522307,1716154105107,-524.68,0.00043835,30]
[327522308,1716154105131,-500.0,0.00043835,30]
[327522309,1716154105154,-500.0,0.00043835,30]
[327522310,1716154105178,-500.0,0.00043835,30]
[327522311,1716154105200,-500.0,0.00043835,30]
[327522312,1716154105223,-500.0,0.00043835,30]
[327522313,1716154105246,-500.0,0.00043835,30]
[327522314,1716154105269,-500.0,0.00043835,30]
[327522315,1716154105292,-500.0,0.00043835,30]
[327522316,1716154105315,-500.0,0.00043835,30]
[327522317,1716154105338,-500.0,0.00043835,30]
[327522318,1716154105360,-500.0,0.00043835,30]
[327522319,1716154105385,-1058.79,0.00043835,30]
[327522320,1716154105410,-1058.79,0.00043835,31]
[327522321,1716154105435,-1058.79,0.00043835,32]
[327522322,1716154105458,-500.0,0.00043835,30]
[327522323,1716154105480,-1058.79,0.00043835,33]
[327522324,1716154105504,-1058.79,0.00043835,34]
[327522325,1716154105530,-954.34,0.00043835,30]
[327522326,1716154105554,-1058.79,0.00043835,35]
[327522327,1716154105578,-1058.79,0.00043835,36]
[327522328,1716154105602,-1058.79,0.00043835,37]
[327522329,1716154105626,-1058.79,0.00043835,38]
[327522330,1716154105650,-500.0,0.00043835,30]
[327522331,1716154105676,-500.0,0.00043835,30]
[327522332,1716154105699,-500.0,0.00043835,30]
[327522333,1716154105724,-1058.79,0.00043835,39]
[327522334,1716154105748,-500.0,0.00043835,30]
[327522335,1716154105770,-500.0,0.00043835,30]
[327522336,1716154105792,-500.0,0.00043835,30]
[327522337,1716154105816,-500.0,0.00043835,30]
[327522338,1716154105838,-500.0,0.00043835,30]
[327522339,1716154105861,-500.0,0.00043835,30]
[327522340,1716154105884,-500.0,0.00043835,30]
[327522341,1716154105906,-500.0,0.00043835,30]
[327522342,1716154105927,-1612.29,0.00043835,30]
[327522343,1716154105947,-500.0,0.00043835,30]
[327522344,1716154105969,-500.0,0.00043835,30]
[327522345,1716154105993,-500.0,0.00043835,30]
[327522346,1716154106018,-500.0,0.00043835,30]
[327522347,1716154106042,-590.46227602,0.00043835,30]
[327522348,1716154106066,-689.88,0.00043835,30]
[327522349,1716154106089,-500.0,0.00043835,30]
[327522350,1716154106113,-500.0,0.00043835,30]
[327522351,1716154106136,-500.0,0.00043835,30]
[327522352,1716154106159,-500.0,0.00043835,30]
[327522353,1716154106181,-502.29771368,0.00043835,30]
[327522354,1716154106204,-500.0,0.00043835,30]
[327522355,1716154106225,-500.0,0.00043835,30]
[327522356,1716154106246,-515.76920482,0.00043835,30]
[327522357,1716154106268,-500.0,0.00043835,30]
[327522358,1716154106291,-890.96,0.00043835,30]
[327522359,1716154106313,-500.0,0.00043835,30]
[327522360,1716154106336,-500.0,0.00043835,30]
[327522361,1716154106361,-500.0,0.00043835,30]
[327522362,1716154106385,-500.0,0.00043835,30]
[327522363,1716154106409,-1024.74,0.00043835,30]
[327522364,1716154106433,-500.0,0.00043835,30]
[327522365,1716154106456,-500.0,0.00043835,30]
[327522366,1716154106478,-500.0,0.00043835,30]
[327522367,1716154106502,-500.0,0.00043835,30]
[327522368,1716154106524,-500.0,0.00043835,30]
[327522369,1716154106546,-500.0,0.00043835,30]
[327522370,1716154106569,-500.0,0.00043835,30]
[327522371,1716154106593,-500.0,0.00043835,30]
[327522372,1716154106614,-500.0,0.00043835,30]
[327522373,1716154106636,-500.0,0.00043835,30]
[327522374,1716154106659,-500.0,0.00043835,30]
[327522375,1716154106773,-500.0,0.00043835,30]
[327522376,1716154106796,-175.02,0.00043835,30]
[327522377,1716154106819,-500.0,0.00043835,30]
[327522378,1716154106841,-500.0,0.00043835,30]
[327522379,1716154106865,-500.0,0.00043835,30]
[327522380,1716154106890,-7230.68,0.00043835,30]
[327522381,1716154106912,-500.0,0.00043835,30]
[327522382,1716154106934,-626.28,0.00043835,30]
[327522383,1716154106958,-500.0,0.00043835,30]
[327522384,1716154106981,-500.0,0.00043835,30]
[327522385,1716154107004,-500.0,0.00043835,30]
[327522386,1716154107027,-500.0,0.00043835,30]
[327522387,1716154107051,-500.0,0.00043835,30]
[327522388,1716154107073,-415.22121894,0.00043835,30]
[327522389,1716154107097,-500.0,0.00043835,30]